bitfinex/quotes_ETHUSD_20240916
["timestamp","ask_amount","ask_price","bid_price","bid_amount"]
[1726521027088,4.38248,2281.9,2281.4,4.52522611]
[1726521027410,4.38265,2281.8,2281.4,4.52522611]
[1726521028374,4.38265,2281.8,2281.5,2.3978]
[1726521028613,4.38265,2281.8,2281.5,2.53969304]
[1726521029174,4.38204,2282.1,2281.5,2.53969304]
[1726521029412,3.0,2282.2,2281.7,2.3978]
[1726521029413,2.3437,2282.2,2281.7,2.3978]
[1726521029612,11.78171,2282.3,2281.7,2.3978]
[1726521029906,4.38182,2282.2,2281.7,2.3978]
[1726521030104,4.38182,2282.2,2281.8,0.14153778]
[1726521030513,4.38182,2282.2,2281.7,6.78039]
[1726521030672,4.38182,2282.2,2281.9,0.14140861]
[1726521031107,4.38182,2282.2,2282.0,0.14127946]
[1726521031413,4.38182,2282.2,2281.8,4.4701311]
[1726521031619,4.38182,2282.2,2282.1,0.14098881]
[1726521031911,4.38166,2282.3,2281.8,4.47013147]
[1726521032094,4.38164,2282.3,2282.1,0.18607128]
[1726521032488,4.38164,2282.3,2282.2,0.18594018]
[1726521033273,4.38164,2282.3,2281.9,4.3823]
[1726521033475,4.38164,2282.3,2282.2,0.18594018]
[1726521033707,4.38164,2282.3,2281.9,4.3823]
[1726521033977,4.38164,2282.3,2282.2,0.18594018]
[1726521034275,5.790306,2282.3,2282.2,0.18594018]
[1726521034696,5.790306,2282.3,2281.9,4.3823]
[1726521034897,4.38164,2282.3,2282.2,0.18594018]
[1726521035400,4.38164,2282.3,2281.9,4.3823]
[1726521035610,4.38164,2282.3,2282.2,0.18594018]
[1726521035775,2.3437,2282.4,2282.0,4.38202]
[1726521035982,2.3437,2282.4,2282.2,0.18594018]
[1726521036281,2.3437,2282.4,2282.0,6.76702]
[1726521036282,3.3197611,2282.4,2282.0,6.76702]
[1726521036509,2.3437,2282.4,2282.3,0.18580908]
[1726521036709,2.3437,2282.4,2282.0,6.76702]
[1726521036905,2.3437,2282.4,2282.3,0.18559221]
[1726521037112,9.691681,2282.6,2282.1,5.01944926]
[1726521037318,0.035591,2282.6,2282.3,2.57059221]
[1726521037517,0.035591,2282.6,2282.3,7.03962293]
[1726521037721,0.035591,2282.6,2282.3,6.76641]
[1726521037878,0.035591,2282.6,2282.4,0.18535503]
[1726521039889,0.035591,2282.6,2282.4,4.56670503]
[1726521040089,0.035591,2282.6,2282.5,0.08761408]
[1726521040307,0.035591,2282.6,2282.5,0.63761408]
[1726521040493,0.035591,2282.6,2282.5,0.82283804]
[1726521041019,0.035591,2282.6,2282.5,5.20399804]
[1726521041318,0.035591,2282.6,2282.5,11.98204396]
[1726521041491,0.035591,2282.6,2282.5,7.60088396]
[1726521041877,0.035591,2282.6,2282.5,11.98204396]
[1726521042089,0.035591,2282.6,2282.5,7.60088396]
[1726521043118,0.035591,2282.6,2282.5,11.98204396]
[1726521045201,0.035591,2282.6,2282.5,14.98204396]
[1726521050735,0.035591,2282.6,2282.5,10.60088396]
[1726521050940,0.035591,2282.6,2282.5,14.98204396]
[1726521056557,7.4,2283.0,2282.7,4.38072]
[1726521057071,7.4,2283.0,2282.9,0.55]
[1726521057438,7.4,2283.0,2282.9,0.73387905]
[1726521058048,7.4,2283.0,2282.9,5.11426905]
[1726521061366,6.7252089,2283.3,2282.9,5.11426905]
[1726521061568,11.1049889,2283.3,2282.9,0.73387905]
[1726521061779,2.272,2283.1,2282.9,0.18387905]
[1726521062069,6.65216,2283.1,2282.7,0.55]
[1726521062239,2.272,2283.1,2283.0,0.1836881]
[1726521062563,2.272,2283.0,2282.6,4.38095]
[1726521062772,2.272,2283.2,2282.8,4.38048]
[1726521062965,2.272,2283.2,2282.8,4.46808266]
[1726521063331,4.4176289,2283.3,2283.2,8.75962]
[1726521063332,0.0378889,2283.3,2283.2,8.75962]
[1726521063731,0.0378889,2283.3,2283.2,19.14253]
[1726521063934,0.0378889,2283.3,2283.2,23.52234]
[1726521064337,7.4,2283.9,2283.8,4.37866]
[1726521064530,0.0378889,2284.0,2283.8,4.92866]
[1726521064778,0.0378889,2284.0,2283.9,0.63756055]
[1726521065644,0.0378889,2284.0,2283.8,0.55]
[1726521066174,0.0378889,2284.0,2283.8,0.63756057]
[1726521066335,0.0378889,2284.0,2283.8,0.55]
[1726521068145,0.0378889,2284.0,2283.8,4.92862]
[1726521069070,0.0378889,2284.0,2283.9,13.68541]
[1726521069245,0.0378889,2284.0,2283.9,19.20157057]
[1726521069446,0.0378889,2284.0,2283.9,23.49248]
[1726521070683,0.0378889,2284.7,2284.6,4.37713]
[1726521070889,0.0378889,2284.7,2284.6,23.48733901]
[1726521071033,0.0378889,2284.7,2284.6,19.11020901]
[1726521071863,0.0378889,2284.7,2284.6,19.02269]
[1726521072093,0.0378889,2284.7,2284.6,14.64556]
[1726521072389,0.0378889,2285.4,2284.6,14.64556]
[1726521072390,0.0378889,2285.4,2285.3,6.75869]
[1726521072685,0.0378889,2285.4,2285.3,14.68448]
[1726521073978,2.292,2285.9,2285.6,0.55]
[1726521074135,2.3254141,2285.9,2285.6,0.55]
[1726521074786,2.3254141,2285.9,2285.3,9.75857]
[1726521074787,6.7001741,2285.9,2285.4,0.55]
[1726521074991,2.292,2285.7,2285.0,3.0]
[1726521075145,2.292,2285.4,2285.0,3.0]
[1726521075652,6.6676,2285.4,2285.0,3.0]
[1726521075871,2.292,2285.4,2285.0,3.0]
[1726521076068,2.292,2285.4,2285.0,7.37635]
[1726521076283,2.292,2285.4,2285.1,0.55]
[1726521076474,2.292,2285.4,2285.1,0.72267543]
[1726521077507,6.66762,2285.4,2285.1,0.72267543]
[1726521077799,7.48688559,2285.4,2285.1,0.72267543]
[1726521078160,6.66762,2285.4,2285.1,0.72267543]
[1726521082061,2.292,2285.4,2285.1,0.72267543]
[1726521089025,2.292,2285.4,2285.1,5.09883543]
[1726521091157,0.0334141,2285.5,2285.3,4.37579]
[1726521091370,0.0334141,2285.5,2285.4,9.38869938]
[1726521091663,2.4261,2286.0,2285.9,4.92464]
[1726521091819,2.4261,2286.2,2286.0,4.92443]
[1726521092021,0.0431773,2286.3,2286.2,0.55]
[1726521092225,0.0431773,2286.3,2286.2,4.92407]
[1726521092464,0.0431773,2286.3,2286.2,5.09505936]
[1726521093021,0.0431773,2286.3,2286.2,5.18253261]
[1726521093267,0.0431773,2286.3,2286.2,19.32419936]
[1726521095651,2.98,2286.9,2286.6,0.55]
[1726521095866,5.2970773,2287.0,2286.6,0.55]
[1726521096061,5.2970773,2287.0,2286.5,4.37348]
[1726521096062,5.2970773,2287.0,2286.8,0.55]
[1726521096233,10.63663603,2287.0,2286.7,0.16973896]
[1726521096436,4.37281,2286.9,2286.4,0.55]
[1726521096664,9.6697073,2287.0,2286.8,0.16960838]
[1726521096873,4.37273,2286.9,2286.4,0.55]
[1726521097168,9.6697073,2287.0,2286.9,0.16947781]
[1726521097365,9.6697073,2287.0,2286.4,4.92361]
[1726521097526,9.6697073,2287.0,2286.9,0.16947781]
[1726521097730,9.6697073,2287.0,2286.6,0.55]
[1726521098254,9.6697073,2287.0,2286.7,0.16973896]
[1726521098943,5.2970773,2287.0,2286.7,0.16973896]
[1726521099269,2.98,2286.9,2286.8,4.92292]
[1726521099444,2.066521,2286.9,2286.8,5.09252838]
[1726521100337,2.066521,2286.9,2286.8,0.71960838]
[1726521100872,2.066521,2286.9,2286.8,5.09252838]
[1726521101930,2.066521,2286.9,2286.8,0.71960838]
[1726521102502,1.1996983,2287.0,2286.8,5.09252838]
[1726521102793,1.1996983,2287.0,2286.9,0.55]
[1726521102996,1.1996983,2287.0,2286.9,4.92273]
[1726521103294,1.1996983,2287.0,2286.9,5.08585865]
[1726521103495,1.1996983,2287.0,2286.9,9.45858865]
[1726521103797,1.1996983,2287.0,2286.9,5.08585865]
[1726521104596,1.1996983,2287.0,2286.9,19.22941865]
[1726521105099,1.1996983,2287.0,2286.9,14.85668865]
[1726521105986,1.1996983,2287.0,2286.9,12.45858865]
[1726521109316,0.0431773,2287.0,2286.9,12.45858865]
[1726521109467,0.0431773,2287.0,2286.9,0.16312865]
[1726521109977,6.7778173,2287.0,2286.9,0.16312865]
[1726521110506,4.37283,2286.9,2286.4,4.37356]
[1726521111602,4.37283,2286.9,2286.4,8.74713]
[1726521111802,4.37283,2286.9,2286.5,0.55]
[1726521112315,4.37332,2286.6,2286.0,8.74865]
[1726521112468,6.83548,2286.7,2286.2,4.37402]
[1726521113905,6.83548,2286.7,2286.3,0.55]
[1726521114474,11.20874,2286.7,2286.3,0.55]
[1726521114710,11.20868,2286.7,2286.3,0.55]
[1726521114860,6.83542,2286.7,2286.3,0.55]
[1726521115501,2.4622,2286.7,2286.3,0.55]
[1726521115705,2.4622,2286.7,2286.3,0.63746868]
[1726521116204,6.83534,2286.7,2286.3,0.63746868]
[1726521116796,6.83534,2286.7,2286.3,0.55]
[1726521117113,4.3735,2286.5,2286.1,0.55]
[1726521117482,4.3735,2286.5,2286.1,4.92422]
[1726521117690,2.4224,2286.2,2285.7,6.73728]
[1726521117890,2.4224,2286.2,2285.9,4.37463]
[1726521118689,2.4224,2286.2,2285.8,4.37476]
[1726521119328,2.4224,2286.2,2285.9,0.55]
[1726521119990,6.79647,2286.2,2285.9,0.55]
[1726521120189,4.37428,2286.1,2285.8,0.55]
[1726521120434,2.4224,2286.2,2285.8,0.55]
[1726521120588,2.4224,2286.2,2285.6,0.55]
[1726521120589,6.82649005,2286.2,2285.6,0.55]
[1726521120793,6.85409,2285.9,2285.3,6.70769]
[1726521121094,4.37492,2285.8,2285.3,4.37569]
[1726521121292,2.4793,2285.9,2285.4,4.37549]
[1726521121514,6.85405,2285.9,2285.4,0.15424342]
[1726521122224,6.85405,2285.9,2285.4,4.52980342]
[1726521123186,6.85405,2285.9,2285.4,0.15424342]
[1726521123393,4.37535,2285.6,2285.4,0.15424342]
[1726521123588,6.76953,2285.7,2285.4,0.15424342]
[1726521123834,6.76953,2285.7,2285.2,0.55]
[1726521124033,8.78042005,2285.6,2285.5,0.1545957]
[1726521124341,2.3945,2285.7,2284.5,4.37722]
[1726521124342,2.3945,2285.7,2285.3,4.37578]
[1726521124489,2.3945,2285.7,2285.5,0.1545957]
[1726521124687,2.3945,2285.7,2285.3,4.37568]
[1726521124886,2.3945,2285.7,2285.6,0.15449716]
[1726521125133,2.3945,2285.7,2285.3,4.37568]
[1726521125429,2.3945,2286.1,2285.4,0.55]
[1726521125737,2.3945,2286.1,2285.7,0.55]
[1726521126102,2.3945,2286.1,2285.8,0.15426334]
[1726521126307,2.3945,2286.1,2285.8,4.37482]
[1726521126537,6.76877,2286.1,2285.9,0.15413266]
[1726521126692,4.37445,2286.0,2285.9,0.15413266]
[1726521127031,6.76877,2286.1,2285.9,0.1540775]
[1726521127198,6.76877,2286.1,2285.5,4.92539]
[1726521127394,4.37474,2285.9,2285.6,0.15446958]
[1726521127942,2.2955,2285.8,2285.6,0.15446958]
[1726521128231,6.67045,2285.8,2285.6,0.15446958]
[1726521128459,6.67045,2285.8,2285.3,4.37578]
[1726521128730,6.67045,2285.8,2285.7,0.14896156]
[1726521128901,6.67045,2285.8,2285.4,0.55]
[1726521129116,6.67045,2285.8,2285.7,0.14896156]
[1726521129310,6.67045,2285.8,2285.4,0.55]
[1726521129710,6.67045,2285.8,2285.5,0.14922299]
[1726521129930,4.37502,2285.7,2285.5,0.14922299]
[1726521130136,2.2955,2285.5,2285.0,8.75251]
[1726521130358,2.2955,2285.5,2285.1,0.08751109]
[1726521130498,2.2955,2285.7,2285.5,4.3754]
[1726521130805,2.2955,2286.0,2285.6,4.37512]
[1726521131010,2.2955,2286.0,2285.8,4.37464]
[1726521131516,2.2955,2286.0,2285.7,0.55]
[1726521132304,6.66997,2286.0,2285.5,4.37527]
[1726521132508,4.37464,2285.9,2285.5,0.55]
[1726521133096,6.66997,2286.0,2285.4,4.37545]
[1726521133297,2.463,2285.7,2285.3,0.55]
[1726521133546,2.463,2285.7,2285.3,4.92578]
[1726521133839,6.83804,2285.7,2285.3,0.55]
[1726521134600,2.463,2285.7,2285.3,4.92577]
[1726521134996,6.86803005,2285.7,2285.1,4.37616]
[1726521135231,6.83831,2285.6,2285.2,0.55]
[1726521135409,4.40503005,2285.7,2284.8,4.37664]
[1726521135410,4.37579,2285.3,2284.8,4.37664]
[1726521135627,6.83914,2285.2,2284.6,4.377]
[1726521135839,6.83914,2285.2,2284.7,4.37682]
[1726521136022,6.83901,2285.2,2284.7,4.37682]
[1726521136399,6.83911,2285.2,2284.7,4.37682]
[1726521136624,6.83911,2285.2,2284.8,0.14532127]
[1726521136625,4.37618,2285.1,2284.8,0.14532127]
[1726521136841,2.463,2285.2,2284.7,4.37685]
[1726521137010,6.83908,2285.2,2284.9,0.14519503]
[1726521137212,6.83908,2285.2,2284.7,4.37683]
[1726521137502,6.83908,2285.2,2284.8,0.14532583]
[1726521137746,6.83908,2285.2,2284.7,8.75364]
[1726521137901,6.83908,2285.2,2284.9,0.14519503]
[1726521138105,6.83908,2285.2,2284.7,4.37681]
[1726521138303,6.83908,2285.2,2285.0,0.14506424]
[1726521138504,6.83908,2285.2,2284.7,8.75362]
[1726521138704,6.83908,2285.2,2285.1,0.14493347]
[1726521138946,6.83908,2285.2,2284.7,4.37678]
[1726521139145,6.83908,2285.2,2285.1,0.14493347]
[1726521139637,6.83908,2285.2,2284.7,4.37678]
[1726521139865,6.83908,2285.2,2284.8,0.14532583]
[1726521140179,6.83908,2285.2,2284.7,4.37678]
[1726521140476,6.83908,2285.2,2284.8,0.14532583]
[1726521140635,6.83908,2285.2,2284.7,8.75362]
[1726521140833,6.83908,2285.2,2284.8,0.14532583]
[1726521141035,6.83908,2285.2,2284.7,8.75362]
[1726521141344,6.83908,2285.2,2284.8,0.14532583]
[1726521141543,6.83908,2285.2,2284.7,4.37678]
[1726521141746,6.83908,2285.2,2284.9,0.14519503]
[1726521141949,6.83908,2285.2,2284.7,8.75361]
[1726521142247,6.83908,2285.2,2284.7,8.75363]
[1726521142459,11.21516,2285.2,2284.8,0.14532583]
[1726521142626,11.21516,2285.2,2284.7,4.37678]
[1726521142829,6.83908,2285.2,2284.8,0.14532583]
[1726521143078,11.21519,2285.2,2284.7,4.37678]
[1726521143231,11.21519,2285.2,2284.9,0.14519503]
[1726521143432,6.83908,2285.2,2284.9,0.14519503]
[1726521143635,6.83908,2285.2,2284.7,8.75363]
[1726521143841,6.83908,2285.2,2284.8,0.14532583]
[1726521144048,6.83908,2285.2,2284.8,4.37668]
[1726521144245,6.83908,2285.2,2284.9,0.14519503]
[1726521144771,2.4399,2285.0,2284.5,4.3772]
[1726521145442,6.81642,2285.0,2284.5,4.3773]
[1726521146130,2.4399,2285.0,2284.6,4.37711]
[1726521146445,2.4399,2285.0,2284.7,4.37691]
[1726521147978,2.4399,2285.0,2284.6,4.37712]
[1726521148550,2.4399,2285.0,2284.6,8.75424]
[1726521148866,2.4399,2285.0,2284.6,4.37712]
[1726521149035,2.4399,2285.0,2284.6,8.75415]
[1726521149241,2.4399,2285.0,2284.7,4.37685]
[1726521149470,2.4399,2285.0,2284.6,4.37703]
[1726521150148,2.4399,2285.0,2284.6,8.75398]
[1726521150390,2.4399,2285.0,2284.7,4.37691]
[1726521151242,2.4399,2285.0,2284.8,4.37673]
[1726521151477,2.4399,2285.0,2284.9,0.14583717]
[1726521151847,2.4399,2285.0,2284.7,8.75374]
[1726521152195,2.4399,2285.0,2284.8,4.52267885]
[1726521152742,2.4399,2285.0,2284.8,0.14595885]
[1726521152942,2.4399,2285.0,2284.7,8.75365]
[1726521153252,2.4399,2285.0,2284.8,0.14595885]
[1726521153440,2.4399,2285.0,2284.8,4.37673]
[1726521153647,2.3455,2285.5,2285.1,4.37607]
[1726521153879,2.3455,2285.5,2285.2,4.52125751]
[1726521154572,2.3455,2285.5,2285.2,0.14541751]
[1726521156979,2.3455,2285.5,2285.2,4.52131751]
[1726521162956,2.3455,2285.5,2285.2,0.14541751]
[1726521163182,4.37575,2285.4,2285.2,0.14541751]
[1726521163695,4.37575,2285.4,2285.3,0.14511364]
[1726521163903,2.4384,2285.3,2284.5,6.18463371]
[1726521164208,9.8384,2285.5,2285.3,0.14005279]
[1726521164363,2.4384,2285.5,2285.2,4.37588]
[1726521164563,2.4384,2285.5,2285.4,0.13992205]
[1726521164813,2.4384,2285.5,2285.1,4.37615]
[1726521165108,2.4384,2285.5,2285.0,6.63869]
[1726521165271,6.81382,2285.5,2285.2,0.14018354]
[1726521165461,2.4384,2285.5,2285.1,4.51638431]
[1726521165915,2.4384,2285.5,2285.2,4.37595]
[1726521166202,2.4384,2285.5,2285.2,4.51613354]
[1726521166375,2.4384,2285.5,2285.2,0.14018354]
[1726521168066,2.4384,2285.5,2285.2,4.51616354]
[1726521169169,2.4384,2285.5,2285.2,0.14018354]
[1726521172303,2.4384,2285.5,2285.2,4.51616354]
[1726521172513,2.4384,2285.5,2285.2,0.14018354]
[1726521172723,2.3236,2285.3,2284.6,4.377]
[1726521172873,2.3236,2285.3,2285.1,4.37605]
[1726521173077,4.37496,2285.8,2285.2,0.13546357]
[1726521173078,2.3236,2285.7,2285.2,0.13546357]
[1726521173307,2.3236,2285.7,2285.3,4.37565]
[1726521173552,2.3236,2285.7,2285.4,0.13520207]
[1726521173708,2.3236,2285.7,2285.1,6.74689]
[1726521173885,6.69863,2285.7,2285.2,0.13546357]
[1726521174311,2.3236,2285.7,2285.2,0.13546357]
[1726521176113,6.69867,2285.7,2285.2,0.13546357]
[1726521177100,4.37526,2285.6,2285.2,0.13546357]
[1726521177736,4.37526,2285.6,2285.0,0.55]
[1726521178034,4.37526,2285.6,2285.2,0.55]
[1726521178234,4.37526,2285.6,2285.1,0.13559433]
[1726521178235,6.68513,2285.5,2285.1,0.13559433]
[1726521178410,4.3756,2285.4,2285.3,0.13533281]
[1726521178606,6.6853,2285.4,2285.2,0.13546357]
[1726521178809,6.6853,2285.4,2285.3,0.13533281]
[1726521179238,6.6853,2285.4,2284.9,0.55]
[1726521179438,6.6853,2285.4,2285.3,0.13532828]
[1726521179594,6.6853,2285.4,2284.9,0.55]
[1726521179798,6.6853,2285.4,2285.3,0.13532828]
[1726521179999,6.6853,2285.4,2284.9,0.55]
[1726521180198,6.6853,2285.4,2285.3,0.13532828]
[1726521180434,6.6853,2285.4,2284.9,0.55]
[1726521180644,6.6853,2285.4,2285.3,0.13532828]
[1726521180800,11.061,2285.4,2284.9,0.55]
[1726521180996,6.6853,2285.4,2285.3,0.13532828]
[1726521181195,6.6853,2285.4,2284.8,0.55]
[1726521181430,6.6853,2285.4,2285.3,0.13532828]
[1726521181636,4.3758,2285.3,2284.8,0.55]
[1726521181935,4.3758,2285.3,2284.8,4.92673]
[1726521182138,4.37601,2285.2,2284.8,0.55]
[1726521182344,6.78848,2285.1,2284.6,3.0]
[1726521182636,6.78848,2285.1,2284.7,2.71988102]
[1726521182841,6.78848,2285.1,2284.6,3.92213371]
[1726521183140,6.78848,2285.1,2284.7,1.08799858]
[1726521183298,6.78848,2285.1,2284.6,3.92213371]
[1726521183502,6.78848,2285.1,2284.7,1.08803856]
[1726521183716,6.78848,2285.1,2284.7,0.55]
[1726521185540,2.4123,2285.4,2285.0,4.37635]
[1726521185743,14.18762,2285.6,2285.0,8.8401167]
[1726521185915,6.78762,2285.6,2285.0,4.4637467]
[1726521186238,4.37545,2285.5,2285.0,4.37623]
[1726521186607,4.3756,2285.4,2285.0,4.37623]
[1726521186803,6.78762,2285.6,2285.0,4.37623]
[1726521187514,5.531461,2285.8,2285.3,4.37575]
[1726521187852,7.992661,2285.8,2285.4,4.37559]
[1726521188141,16.77452,2286.0,2285.4,4.37559]
[1726521188142,2.4612,2286.0,2285.6,4.92511]
[1726521189872,6.83566,2286.0,2285.5,0.55]
[1726521190173,6.83566,2286.0,2285.4,2.3796]
[1726521190174,4.37483,2285.8,2285.4,0.55]
[1726521190653,2.4612,2285.7,2285.1,5.29829371]
[1726521190855,2.4612,2285.7,2285.3,0.55]
[1726521191060,2.4612,2285.7,2285.3,4.92575]
[1726521191371,2.4612,2285.7,2285.3,0.55]
[1726521191527,6.83632,2285.7,2285.3,0.55]
[1726521192141,2.4612,2285.7,2285.3,0.55]
[1726521196379,2.4612,2285.7,2285.4,0.13482134]
[1726521200279,6.83624,2285.7,2285.4,0.13482134]
[1726521200451,4.37536,2285.6,2285.4,0.13482134]
[1726521201065,6.83624,2285.7,2285.4,0.13482134]
[1726521203148,11.21137,2285.7,2285.4,0.13482134]
[1726521203348,6.83624,2285.7,2285.4,0.13482134]
[1726521203630,4.37523,2285.6,2285.4,0.13482134]
[1726521204267,4.37523,2285.6,2285.2,0.55]
[1726521204477,4.37523,2285.6,2285.5,0.13476315]
[1726521204676,4.37523,2285.6,2285.2,0.55]
[1726521205179,4.37523,2285.6,2285.3,0.13502462]
[1726521205387,4.37523,2285.6,2285.2,4.92594]
[1726521205549,4.37523,2285.6,2285.3,0.13502462]
[1726521205754,4.37523,2285.6,2285.2,4.92594]
[1726521205996,4.37523,2285.6,2285.3,0.13502462]
[1726521206592,4.37523,2285.6,2285.4,0.13489387]
[1726521206896,4.37523,2285.6,2285.2,4.92594]
[1726521207092,4.37523,2285.6,2285.5,0.13476315]
[1726521207303,4.37523,2285.6,2285.2,4.92594]
[1726521207501,4.37523,2285.6,2285.5,0.13476315]
[1726521207674,4.37523,2285.6,2285.2,4.92594]
[1726521208174,4.37523,2285.6,2285.3,0.13502462]
[1726521208379,4.37523,2285.6,2285.2,4.92594]
[1726521208692,4.37523,2285.6,2285.3,0.13502462]
[1726521209068,4.37523,2285.6,2285.2,4.92594]
[1726521209270,4.37523,2285.6,2285.4,0.13489387]
[1726521209471,4.37523,2285.6,2285.3,0.13502462]
[1726521209696,4.37523,2285.6,2285.5,0.13476315]
[1726521210188,4.37523,2285.6,2285.2,4.92594]
[1726521210389,4.37523,2285.6,2285.3,0.13502462]
[1726521210706,4.37523,2285.6,2285.2,4.92594]
[1726521211006,4.37523,2285.6,2285.3,0.13502462]
[1726521211414,4.37523,2285.6,2285.2,4.92594]
[1726521211619,4.37523,2285.6,2285.4,0.13489387]
[1726521211796,4.37523,2285.6,2285.3,0.13502462]
[1726521211987,4.37523,2285.6,2285.2,4.92594]
[1726521212185,4.37523,2285.6,2285.3,0.13502462]
[1726521212497,4.37523,2285.6,2285.2,4.92594]
[1726521212692,4.37523,2285.6,2285.4,0.13489387]
[1726521212898,4.37523,2285.6,2285.3,0.13502462]
[1726521213103,4.37523,2285.6,2285.5,0.13476315]
[1726521213475,4.37523,2285.6,2285.2,4.92594]
[1726521213677,4.37523,2285.6,2285.5,0.13476315]
[1726521213915,4.37523,2285.6,2285.2,4.92594]
[1726521214079,4.37523,2285.6,2285.5,0.13476315]
[1726521214617,4.37523,2285.6,2285.2,4.92594]
[1726521214810,4.37523,2285.6,2285.5,0.13476315]
[1726521215034,4.37523,2285.6,2285.2,4.92594]
[1726521215232,4.37523,2285.6,2285.5,0.13476315]
[1726521215418,4.37523,2285.6,2285.2,4.92594]
[1726521215419,1.121147,2285.6,2285.2,4.92594]
[1726521215624,2.4004031,2286.1,2285.6,3.0354]
[1726521215828,0.0043031,2286.1,2286.0,7.40985]
[1726521215998,0.0043031,2286.1,2286.0,3.0354]
[1726521216198,0.0043031,2286.1,2286.0,4.27656563]
[1726521216418,0.0043031,2286.1,2286.0,0.68422748]
[1726521220611,0.0043031,2286.1,2286.0,0.13422748]
[1726521220828,0.0043031,2286.1,2285.9,0.55]
[1726521221041,0.0043031,2286.1,2286.0,0.13422748]
[1726521225462,0.0043031,2286.1,2286.0,5.05867748]
[1726521225674,0.0043031,2286.1,2286.0,9.43312748]
[1726521225819,0.0043031,2286.1,2286.0,11.73762748]
[1726521227421,0.0043031,2286.1,2286.0,19.11207748]
[1726521227622,2.4649,2286.7,2286.3,4.3737]
[1726521227826,2.4649,2286.7,2286.1,0.55]
[1726521227827,2.4649,2286.7,2286.4,4.37367]
[1726521228132,2.4649,2286.7,2286.4,4.50228902]
[1726521228529,2.4649,2286.7,2286.4,0.12861902]
[1726521230287,4.37339,2286.6,2286.4,0.12861902]
[1726521230488,6.75249,2286.5,2286.4,0.12861902]
[1726521230787,6.75249,2286.5,2286.0,0.55]
[1726521230990,6.75249,2286.5,2286.4,0.12861902]
[1726521231372,6.75249,2286.5,2286.0,4.92442]
[1726521231572,6.75249,2286.5,2286.4,0.12861902]
[1726521231775,6.75249,2286.5,2286.0,4.92442]
[1726521232348,6.75249,2286.5,2286.1,0.12901093]
[1726521238508,4.37371,2286.4,2286.1,0.12901093]
[1726521238865,4.37407,2286.2,2286.1,0.12901093]
[1726521239296,2.3906,2286.3,2285.6,9.32805505]
[1726521239495,2.3906,2286.3,2286.1,0.12460499]
[1726521239813,4.37352,2286.5,2286.0,4.37431]
[1726521239814,6.76412,2286.5,2286.0,4.37431]
[1726521240113,6.76412,2286.5,2286.1,0.12461852]
[1726521240313,4.37368,2286.4,2286.1,0.12461852]
[1726521241607,6.6462,2286.5,2286.1,0.12461852]
[1726521241991,4.3737,2286.4,2286.1,0.12461852]
[1726521247871,6.6462,2286.5,2286.1,0.12461852]
[1726521248101,11.01983,2286.5,2286.1,0.12461852]
[1726521248414,6.77673,2286.7,2286.3,4.3738]
[1726521248766,6.77673,2286.7,2286.4,0.12422661]
[1726521253392,4.37333,2286.6,2286.4,0.12422661]
[1726521253588,4.37349,2286.5,2286.4,0.12422661]
[1726521253822,4.37349,2286.5,2286.1,4.37422]
[1726521254021,4.37349,2286.5,2286.4,0.12410932]
[1726521254234,4.37349,2286.5,2286.4,0.12413187]
[1726521254400,4.37349,2286.5,2286.1,4.37422]
[1726521254802,4.37349,2286.5,2286.2,0.12439313]
[1726521255884,4.37371,2286.4,2286.2,0.12439313]
[1726521256131,6.77157,2286.3,2286.2,0.12439313]
[1726521256342,4.37371,2286.4,2286.0,4.37445]
[1726521256519,4.37371,2286.4,2286.2,0.12442019]
[1726521256720,6.7712,2286.5,2286.1,4.49875084]
[1726521257043,4.3735,2286.5,2286.2,2.57962019]
[1726521257610,4.37347,2286.6,2286.2,6.95368019]
[1726521258111,8.74691,2286.6,2286.2,2.57962019]
[1726521258541,8.7468,2286.6,2286.2,2.57962019]
[1726521258744,4.3734,2286.6,2286.2,2.57962019]
[1726521258980,8.74681,2286.6,2286.2,2.57962019]
[1726521261548,4.37352,2286.5,2286.2,2.57962019]
[1726521262383,4.3734,2286.6,2286.2,6.95367019]
[1726521262957,8.74681,2286.6,2286.2,2.57962019]
[1726521263283,4.3734,2286.6,2286.2,2.57962019]
[1726521263916,4.4105745,2286.8,2286.3,4.92377]
[1726521264222,4.4105745,2286.8,2286.3,9.29749]
[1726521264424,4.4105745,2286.8,2286.4,0.12411385]
[1726521264724,4.4105745,2286.8,2286.4,4.49777385]
[1726521265798,4.4105545,2286.8,2286.4,0.12411385]
[1726521265997,4.4105545,2286.8,2286.4,4.49777385]
[1726521267004,0.0375045,2286.8,2286.4,4.49777385]
[1726521270528,0.0375045,2286.8,2286.5,4.37348]
[1726521270730,0.0375045,2286.8,2286.4,4.49777385]
[1726521270887,4.4104745,2286.8,2286.6,0.12376695]
[1726521271096,4.4104745,2286.8,2286.4,4.37366]
[1726521271335,4.4104745,2286.8,2286.7,0.12363635]
[1726521271546,4.4104745,2286.8,2286.4,4.37366]
[1726521271744,4.4104745,2286.8,2286.7,0.12363635]
[1726521272064,0.0375045,2286.8,2286.7,0.12363635]
[1726521272238,0.0375045,2286.8,2286.4,4.37364]
[1726521272421,0.0375045,2286.8,2286.5,0.12389755]
[1726521272921,4.4104345,2286.8,2286.5,0.12389755]
[1726521274018,4.37311,2286.7,2286.3,4.92376]
[1726521274222,4.37311,2286.7,2286.4,0.12402816]
[1726521275651,2.4475,2286.6,2286.4,0.12402816]
[1726521275835,2.47750005,2286.6,2286.2,6.8292]
[1726521276039,6.85088005,2286.6,2286.3,0.12405958]
[1726521276349,6.85088005,2286.6,2286.2,4.374]
[1726521276533,6.85088005,2286.6,2286.4,0.12393346]
[1726521276736,6.85088005,2286.6,2286.3,0.12406409]
[1726521276955,6.85088005,2286.6,2286.5,0.12380285]
[1726521277565,6.85088005,2286.6,2286.2,4.374]
[1726521278162,6.85088005,2286.6,2286.3,0.12406409]
[1726521278526,6.85088005,2286.6,2286.2,4.374]